bitfinex/quotes_ETHUSD_20251107
["timestamp","ask_amount","ask_price","bid_price","bid_amount"]
[1762516795984,7.06450488,3267.6,3267.5,2.461]
[1762516797370,7.06450488,3267.6,3267.5,3.691]
[1762516798796,5.55228066,3267.5,3267.1,0.001]
[1762516799009,6.46028066,3267.5,3267.1,0.001]
[1762516799802,4.72594077,3267.2,3267.1,0.001]
[1762516799960,5.26857932,3267.2,3267.1,0.001]
[1762516800161,6.14746167,3267.2,3267.1,0.001]
[1762516800387,6.14746167,3267.2,3267.1,1.231]
[1762516801686,6.14746167,3267.2,3267.1,2.461]
[1762516802012,1.66575055,3267.2,3267.1,2.9456]
[1762516802311,0.92051788,3267.6,3267.1,3.5974]
[1762516802600,0.002,3268.4,3267.5,0.4846]
[1762516802764,0.002,3268.4,3268.3,0.6664]
[1762516802966,0.40803855,3268.4,3268.0,0.1818]
[1762516803164,0.40803855,3268.4,3268.3,0.4846]
[1762516803165,1.07443855,3268.4,3268.3,0.4846]
[1762516803614,1.9512209,3268.4,3267.7,0.4569]
[1762516803909,0.405504,3267.6,3267.5,1.23]
[1762516804066,4.7255661,3267.6,3267.5,1.23]
[1762516804269,5.58780465,3267.6,3267.5,1.23]
[1762516804601,6.008387,3267.6,3267.5,1.23]
[1762516804791,6.466687,3267.6,3267.5,2.46]
[1762516805503,5.58780465,3267.6,3267.5,2.46]
[1762516805704,6.008387,3267.6,3267.5,2.46]
[1762516806288,6.008387,3267.6,3267.5,3.69]
[1762516806487,6.466687,3267.6,3267.5,3.69]
[1762516806786,6.008387,3267.6,3267.5,3.69]
[1762516806985,2.4918369,3267.6,3267.5,4.1746]
[1762516807189,1.259712,3267.6,3267.5,4.6315]
[1762516807415,1.259712,3267.6,3267.5,3.69]
[1762516807617,5.1817661,3267.6,3267.5,3.69]
[1762516807924,6.04610465,3267.6,3267.5,4.92]
[1762516808145,5.13160465,3267.6,3267.5,5.4046]
[1762516808424,4.7255661,3267.6,3267.5,4.92]
[1762516808806,1.665216,3267.6,3267.5,5.8615]
[1762516808992,1.259712,3267.6,3267.5,5.8615]
[1762516809195,1.259712,3267.6,3267.5,7.67765]
[1762516809837,1.665216,3267.6,3267.5,7.67765]
[1762516810341,0.6684,3268.4,3267.5,7.67765]
[1762516810536,0.40603855,3268.3,3267.5,6.6346]
[1762516810720,1.259712,3267.7,3267.5,7.8646]
[1762516810920,0.404704,3267.6,3267.5,7.8646]
[1762516811121,1.259712,3268.0,3267.5,7.8646]
[1762516811321,0.40603855,3268.0,3267.5,7.8646]
[1762516811521,0.40603855,3268.0,3267.9,0.4846]
[1762516811902,4.31959578,3268.1,3267.9,0.4846]
[1762516812329,4.31959578,3268.1,3267.9,1.7146]
[1762516812513,4.3195381,3268.2,3267.9,1.7146]
[1762516812954,0.405504,3268.1,3267.9,1.7146]
[1762516813454,0.405504,3268.3,3268.0,0.9415]
[1762516813661,0.405504,3268.3,3268.0,0.4569]
[1762516813830,0.6684,3268.4,3268.2,0.4846]
[1762516814031,0.6684,3268.4,3268.1,0.1818]
[1762516814267,1.07443855,3268.4,3267.9,2.46]
[1762516814465,0.6684,3268.4,3268.3,0.4973]
[1762516814632,0.6684,3268.4,3267.9,2.9269]
[1762516814633,0.405504,3268.2,3267.9,2.9269]
[1762516814967,0.81154255,3268.2,3268.1,1.23]
[1762516815140,5.13104281,3268.2,3268.1,1.23]
[1762516815327,6.09344281,3268.2,3268.1,1.23]
[1762516815524,1.665216,3268.2,3268.1,1.7273]
[1762516815970,1.665216,3268.2,3268.1,1.23]
[1762516815971,6.51402516,3268.2,3268.1,1.23]
[1762516816266,6.51402516,3268.2,3267.9,2.26]
[1762516816267,4.80789152,3268.0,3267.9,2.26]
[1762516816425,5.63451242,3268.0,3267.9,2.26]
[1762516816756,6.12061242,3268.0,3267.9,2.26]
[1762516817320,6.12061242,3268.0,3267.9,2.06]
[1762516817523,3.4658541,3267.6,3267.5,7.38]
[1762516817723,5.61844845,3267.6,3267.5,5.32]
[1762516817956,6.510587,3267.6,3267.5,6.55]
[1762516818767,1.665216,3267.5,3267.1,2.461]
[1762516818936,5.14625906,3267.5,3267.4,0.001]
[1762516819140,4.72567671,3267.5,3267.4,0.001]
[1762516820069,6.51469761,3267.5,3267.4,0.001]
[1762516820654,6.51469761,3267.5,3267.4,1.231]
[1762516820976,7.43530023,3267.5,3267.4,1.231]
[1762516821587,6.94920023,3267.5,3267.4,1.231]
[1762516821891,4.72594077,3267.2,3267.1,3.691]
[1762516822033,4.72603446,3267.1,3267.0,0.001]
[1762516822232,6.09047301,3267.1,3267.0,0.001]
[1762516822544,4.72631554,3266.8,3266.7,1.231]
[1762516822729,6.02283644,3266.8,3266.7,1.231]
[1762516822931,4.72650296,3266.6,3266.1,1.4249]
[1762516823132,4.72687787,3266.2,3266.1,1.23]
[1762516823450,2.07125455,3266.2,3266.1,2.46]
[1762516823640,2.07125455,3266.2,3266.1,2.9573]
[1762516823855,5.13291642,3266.2,3266.1,2.9573]
[1762516824285,5.55349877,3266.2,3266.1,2.46]
[1762516824569,3.02667221,3266.2,3266.1,4.1873]
[1762516824885,3.02667221,3266.2,3266.1,3.69]
[1762516825037,6.50891643,3266.2,3266.1,3.69]
[1762516825233,3.02667221,3266.2,3266.1,4.3822]
[1762516825829,2.58605033,3266.2,3266.1,4.3822]
[1762516826029,2.58605033,3266.2,3266.1,5.6122]
[1762516826271,2.58605033,3266.2,3266.1,6.0791]
[1762516826568,7.47136731,3266.2,3266.1,4.16557104]
[1762516827300,3.92360544,3266.2,3266.1,4.16557104]
[1762516827447,3.02672309,3266.2,3266.1,6.55467104]
[1762516827647,6.08838496,3266.2,3266.1,5.39557104]
[1762516827954,5.64776308,3266.2,3266.1,5.39557104]
[1762516828163,6.56468496,3266.2,3266.1,5.39557104]
[1762516828398,7.47136731,3266.2,3266.1,3.13228416]
[1762516828543,7.47136731,3266.2,3266.1,2.3778552]
[1762516828751,7.47136731,3266.2,3266.1,3.6078552]
[1762516830277,6.08838496,3266.2,3266.1,3.6078552]
[1762516830446,6.56468496,3266.2,3266.1,4.8378552]
[1762516831157,6.98526731,3266.2,3266.1,4.8378552]
[1762516831359,6.98526731,3266.2,3266.1,4.08342624]
[1762516831360,7.47136731,3266.2,3266.1,4.08342624]
[1762516831581,7.47136731,3266.2,3266.1,3.51760452]
[1762516831783,7.47136731,3266.2,3266.1,4.74760452]
[1762516832287,7.47136731,3266.2,3266.1,3.80456832]
[1762516832596,7.47136731,3266.2,3266.1,3.68758876]
[1762516833155,7.47136731,3266.2,3266.1,4.91758876]
[1762516833356,3.02672309,3266.2,3266.1,4.91758876]
[1762516833557,2.18059721,3266.2,3266.1,6.07668876]
[1762516833776,2.58530121,3266.2,3266.1,6.07668876]
[1762516834379,2.58530121,3266.2,3266.1,5.11248876]
[1762516834566,6.56388496,3266.2,3266.1,6.14758876]
[1762516835174,7.04998496,3266.2,3266.1,6.14758876]
[1762516835456,7.47056731,3266.2,3266.1,6.14758876]
[1762516835667,6.50816731,3266.2,3266.1,6.14758876]
[1762516835894,6.08758496,3266.2,3266.1,6.14758876]
[1762516836094,5.64696308,3266.2,3266.1,7.87488876]
[1762516836296,6.08758496,3266.2,3266.1,7.37758876]
[1762516837455,6.56388496,3266.2,3266.1,8.60758876]
[1762516837661,7.04998496,3266.2,3266.1,8.60758876]
[1762516837863,7.47056731,3266.2,3266.1,8.60758876]
[1762516838895,7.47056731,3266.2,3266.1,9.83758876]
[1762516839925,3.93790974,3265.3,3265.2,2.035412]
[1762516840256,3.93790974,3265.3,3264.5,0.6495]
[1762516840257,1.259712,3265.2,3264.7,0.886464]
[1762516840417,0.405504,3265.1,3264.8,0.4677]
[1762516840736,0.405504,3265.2,3264.7,0.886464]
[1762516840900,0.405504,3265.0,3264.7,0.886464]
[1762516841098,0.405504,3265.0,3264.8,0.4677]
[1762516841313,0.405504,3265.2,3264.9,0.454]
[1762516841517,0.405504,3265.2,3265.1,0.6358]
[1762516841714,0.87679255,3265.2,3265.1,0.6358]
[1762516841903,2.13650455,3265.2,3265.1,0.6358]
[1762516842105,1.665216,3265.2,3265.1,0.6358]
[1762516842433,1.665216,3265.2,3265.1,1.1035]
[1762516843028,1.665216,3265.2,3265.1,1.23]
[1762516843233,1.665216,3265.2,3265.1,2.3335]
[1762516844421,1.665216,3265.2,3265.1,3.5635]
[1762516844738,2.13650455,3265.2,3265.1,2.914]
[1762516844941,2.13650455,3265.2,3265.1,2.9467]
[1762516845240,5.19910408,3265.2,3265.1,2.9467]
[1762516845405,5.19910408,3265.2,3265.1,2.46]
[1762516845742,6.14673643,3265.2,3265.1,2.46]
[1762516846055,6.14673643,3265.2,3265.1,3.69]
[1762516846056,6.62803643,3265.2,3265.1,3.69]
[1762516846205,2.5898369,3265.2,3265.1,4.1767]
[1762516846411,2.13650455,3265.2,3265.1,4.1767]
[1762516846606,5.19910408,3265.2,3265.1,4.1767]
[1762516846820,2.13650455,3265.2,3265.1,4.3585]
[1762516847018,1.665216,3265.2,3265.1,4.83]
[1762516847236,1.665216,3265.2,3265.1,6.06]
[1762516848638,5.65243643,3265.2,3265.1,6.15]
[1762516849165,2.5898369,3265.2,3265.1,6.6367]
[1762516849472,2.5898369,3265.2,3265.1,6.15]
[1762516849831,2.5898369,3265.2,3265.1,7.38]
[1762516849832,2.13650455,3265.2,3265.1,7.38]
[1762516850042,2.13650455,3265.2,3265.1,8.0485]
[1762516850243,0.47128855,3266.4,3265.1,9.372]
[1762516850471,0.1893,3267.7,3266.3,0.6709]
[1762516850472,0.92071281,3266.6,3266.3,0.6709]
[1762516850632,0.92071281,3266.6,3265.1,8.4138]
[1762516850839,0.405504,3265.7,3265.2,0.4715]
[1762516851033,0.405504,3265.5,3265.2,0.4715]
[1762516851268,0.405504,3265.3,3265.2,0.4715]
[1762516851639,0.405504,3265.3,3265.2,0.9582]
[1762516852432,0.405504,3265.3,3265.2,0.4867]
[1762516852988,0.405504,3265.3,3265.2,2.1882]
[1762516853458,3.06186871,3266.0,3265.2,3.2862]
[1762516853459,0.405504,3266.0,3265.2,3.2862]
[1762516853645,1.259712,3266.0,3265.9,0.4867]
[1762516853846,0.93463235,3266.7,3265.9,0.4867]
[1762516853847,3.06156019,3266.4,3265.9,0.4867]
[1762516854046,0.405504,3266.1,3265.9,0.4867]
[1762516854236,2.18049829,3266.2,3265.9,1.7167]
[1762516854436,0.92078629,3266.2,3266.1,0.4867]
[1762516854895,1.32629029,3266.2,3266.1,1.1424]
[1762516855077,0.405504,3266.2,3266.1,1.1424]
[1762516855440,0.92078346,3266.3,3266.1,2.3724]
[1762516855743,0.45333235,3267.0,3266.3,0.4867]
[1762516855744,0.47128855,3267.0,3266.3,0.4867]
[1762516855979,0.47128855,3267.0,3266.1,1.77444]
[1762516855980,0.405504,3266.7,3266.1,1.4142]
[1762516856177,0.002,3266.2,3266.1,1.4142]
[1762516856563,0.0012,3266.2,3266.1,1.9009]
[1762516857075,0.0012,3266.2,3266.1,3.1309]
[1762516857383,0.87799255,3266.2,3266.1,3.1309]
[1762516857540,0.87799255,3266.2,3266.1,2.9467]
[1762516857740,2.63200455,3266.2,3266.1,2.46]
[1762516857979,0.87799255,3266.2,3266.1,3.1309]
[1762516858276,0.406704,3266.2,3266.1,3.6024]
[1762516858611,0.406704,3266.2,3266.1,4.8324]
[1762516858877,0.406704,3266.2,3266.1,4.1767]
[1762516859389,0.406704,3266.2,3266.1,4.8324]
[1762516859553,0.0012,3266.2,3266.1,5.43864]
[1762516859874,0.0012,3266.2,3266.1,4.3609]
[1762516859875,0.406704,3266.2,3266.1,4.3609]
[1762516860041,0.406704,3266.2,3266.1,5.5909]
[1762516860489,0.0012,3266.2,3266.1,6.0624]
[1762516861452,0.0012,3266.2,3266.1,7.2924]
[1762516863096,0.0012,3266.2,3266.1,8.5224]
[1762516864360,0.0012,3266.2,3266.1,9.7524]
[1762516864811,4.43395442,3266.2,3266.1,8.61]
[1762516865013,0.87799255,3266.2,3266.1,9.7524]
[1762516865577,0.87799255,3266.2,3266.1,9.84]
[1762516866022,0.87799255,3266.2,3266.1,10.3267]
[1762516866323,0.87799255,3266.2,3266.1,9.84]
[1762516866478,6.17496642,3266.2,3266.1,9.84]
[1762516866673,3.89583801,3266.2,3266.1,9.84]
[1762516866874,6.62829877,3266.2,3266.1,11.07]
[1762516867186,6.95749988,3266.2,3266.1,11.07]
[1762516867512,6.41259474,3266.2,3266.1,11.07]
[1762516868019,6.89389474,3266.2,3266.1,11.07]
[1762516868178,6.95749988,3266.2,3266.1,11.07]
[1762516868378,7.1176813,3266.2,3266.1,12.3]
[1762516868993,7.1176813,3266.2,3266.1,11.79760806]
[1762516869186,6.66434895,3266.2,3266.1,11.2734625]
[1762516869513,7.07581531,3266.2,3266.1,11.2734625]
[1762516869693,7.07581531,3266.2,3266.1,12.1038635]
[1762516870380,7.03213651,3266.2,3266.1,12.1038635]
[1762516871119,7.03213651,3266.2,3266.1,13.3338635]
[1762516871814,6.7029354,3266.2,3266.1,13.3338635]
[1762516872179,6.29146904,3266.2,3266.1,13.3338635]
[1762516872379,0.16138142,3266.2,3266.1,13.3338635]
[1762516872589,4.81687387,3266.2,3266.1,14.5638635]
[1762516872789,5.70367787,3266.2,3266.1,14.5638635]
[1762516872992,2.09402575,3266.2,3266.1,14.5638635]
[1762516873321,0.0012,3266.2,3266.1,17.28574985]
[1762516874028,0.0012,3266.2,3266.1,18.51574985]
[1762516875325,0.0012,3266.2,3266.1,19.74574985]
[1762516875617,0.0012,3266.2,3266.1,17.6947635]
[1762516876514,0.0012,3266.2,3266.1,18.1616635]
[1762516876690,0.0012,3266.2,3266.1,19.3916635]
[1762516877323,0.0012,3266.2,3266.1,19.3558635]
[1762516877931,0.0012,3266.2,3266.1,20.5858635]
[1762516878139,0.0012,3266.2,3266.1,22.76754985]
[1762516879563,0.0004,3266.2,3266.1,23.99754985]
[1762516881177,0.0004,3266.2,3266.1,25.22754985]
[1762516882652,0.0004,3266.2,3266.1,26.45754985]
[1762516884173,0.002,3267.5,3266.5,0.4511]
[1762516884357,0.002,3268.0,3267.8,0.4511]
[1762516884555,0.002,3268.0,3267.9,0.4511]
[1762516885502,0.002,3268.0,3267.9,1.6811]
[1762516886392,0.002,3268.0,3267.9,1.23]
[1762516886393,0.42960975,3268.0,3267.9,1.23]
[1762516886597,0.405504,3267.9,3266.1,24.5878635]
[1762516886912,3.06136042,3266.6,3266.1,24.4038635]
[1762516887096,0.0537,3267.5,3266.1,24.4038635]
[1762516887097,0.191,3266.2,3266.1,24.4038635]
[1762516887270,1.95286825,3266.2,3266.1,24.4038635]
[1762516887603,1.45936825,3266.2,3266.1,24.4038635]
[1762516887971,0.80867516,3266.2,3266.1,25.6338635]
[1762516888393,0.191,3266.8,3266.1,28.05199845]
[1762516888593,0.405504,3266.7,3266.1,28.05199845]
[1762516889208,0.405504,3266.4,3266.1,25.6338635]
[1762516889368,3.46697929,3266.4,3266.1,26.8638635]
[1762516889567,1.259712,3266.5,3266.1,26.8638635]
[1762516889568,0.405504,3266.2,3266.1,26.8638635]
[1762516889803,0.86519709,3266.2,3266.1,26.8638635]
[1762516890822,0.86519709,3266.2,3266.1,28.0938635]
[1762516891486,1.36319709,3266.2,3266.1,28.0938635]
[1762516891997,1.36319709,3266.2,3266.1,29.1168635]
[1762516892377,0.86519709,3266.2,3266.1,29.1168635]
[1762516893005,2.12490909,3266.2,3266.1,29.1168635]
[1762516893330,0.86519709,3266.2,3266.1,29.1168635]
[1762516893522,2.12490909,3266.2,3266.1,30.3468635]
[1762516893724,0.86519709,3266.2,3266.1,30.3468635]
[1762516894236,2.12490909,3266.2,3266.1,30.3468635]
[1762516894531,5.68457096,3266.2,3266.1,30.3468635]
[1762516894755,6.16487096,3266.2,3266.1,30.3468635]
[1762516894959,6.16487096,3266.2,3266.1,31.5768635]
[1762516894960,1.665216,3266.2,3266.1,31.5768635]
[1762516895252,0.002,3266.7,3266.1,32.6788635]
[1762516895802,0.407504,3266.7,3266.1,32.2119635]
[1762516896284,0.002,3266.7,3266.1,33.4419635]
[1762516896418,0.002,3266.7,3266.1,35.61401247]
[1762516896616,0.002,3266.7,3266.1,36.08091247]
[1762516896812,0.002,3266.7,3266.1,32.8068635]
[1762516897134,1.665216,3266.3,3266.1,32.8068635]
[1762516897336,0.405504,3266.3,3266.1,32.8068635]
[1762516897637,0.405504,3266.2,3266.1,34.0368635]
[1762516897842,0.86519709,3266.2,3266.1,34.0368635]
[1762516898134,2.12490909,3266.2,3266.1,34.0368635]
[1762516898433,2.62290909,3266.2,3266.1,34.0368635]
[1762516898634,5.68457096,3266.2,3266.1,34.0368635]
[1762516898835,3.10320909,3266.2,3266.1,34.0368635]
[1762516899045,3.10320909,3266.2,3266.1,35.2668635]
[1762516899936,2.62290909,3266.2,3266.1,35.2668635]
[1762516900135,2.12490909,3266.2,3266.1,35.2668635]
[1762516900341,2.12490909,3266.2,3266.1,36.4968635]
[1762516900514,2.61180909,3266.2,3266.1,36.4968635]
[1762516900915,2.12490909,3266.2,3266.1,36.4968635]
[1762516901536,0.002,3266.7,3266.1,40.68101088]
[1762516901715,0.002,3266.7,3266.1,40.94631088]
[1762516901906,0.407504,3266.7,3266.1,40.94631088]
[1762516902102,1.667216,3266.7,3266.1,40.94631088]
[1762516902409,0.86639709,3266.7,3266.1,40.94631088]
[1762516902810,0.0012,3266.7,3266.2,3.02924738]
[1762516903014,0.406704,3266.7,3266.2,3.52914738]
[1762516903215,0.0012,3266.7,3266.3,0.4999]
[1762516904037,0.0012,3266.7,3266.2,4.25924738]
[1762516904419,0.0012,3266.7,3266.2,4.75694738]
[1762516904618,0.0012,3266.7,3266.3,1.75081158]
[1762516904853,0.0012,3266.7,3266.2,2.46]
[1762516905056,0.405504,3266.5,3266.3,0.1841]
[1762516905224,0.405504,3266.5,3266.2,2.46]
[1762516905225,0.867604,3266.3,3266.2,2.46]
[1762516905672,2.58700909,3266.3,3266.2,2.46]
[1762516905841,6.11067722,3266.3,3266.2,2.46]
[1762516906042,6.11067722,3266.3,3266.2,3.69]
[1762516906043,6.54215704,3266.3,3266.2,3.69]
[1762516906334,3.48058891,3266.3,3266.2,3.69]
[1762516906546,6.54215704,3266.3,3266.2,3.69]
[1762516906917,6.8988282,3266.3,3266.2,3.69]
[1762516907223,6.54215704,3266.3,3266.2,3.69]
[1762516907593,6.54215704,3266.3,3266.2,4.92]
[1762516907763,6.8988282,3266.3,3266.2,4.14437469]
[1762516908762,7.5091826,3266.3,3266.2,4.14437469]
[1762516908970,7.5091826,3266.3,3266.2,5.37437469]
[1762516909338,7.5091826,3266.3,3266.2,4.89858583]
[1762516909538,6.51197042,3266.2,3266.1,33.50654633]
[1762516909972,6.15529926,3266.2,3266.1,33.50654633]
[1762516910276,6.15529926,3266.2,3266.1,34.73654633]
[1762516910661,6.46197042,3266.2,3266.1,34.73654633]
[1762516910847,6.07013967,3266.2,3266.1,34.73654633]
[1762516911235,6.46197042,3266.2,3266.1,34.73654633]
[1762516911692,6.46197042,3266.2,3266.1,35.96654633]
[1762516912647,6.07013967,3266.2,3266.1,35.96654633]
[1762516912853,5.71346851,3266.2,3266.1,35.96654633]
[1762516913048,5.71346851,3266.2,3266.1,37.19654633]
[1762516913254,5.46346851,3266.2,3266.1,37.19654633]
[1762516913455,6.21197042,3266.2,3266.1,37.19654633]
[1762516913941,5.85529926,3266.2,3266.1,37.19654633]
[1762516914141,5.46346851,3266.2,3266.1,37.19654633]
[1762516914338,5.46346851,3266.2,3266.1,38.42654633]
[1762516914575,5.82013967,3266.2,3266.1,38.42654633]
[1762516914774,4.20375651,3266.2,3266.1,38.42654633]
[1762516915143,5.46346851,3266.2,3266.1,38.42654633]
[1762516915344,6.21197042,3266.2,3266.1,38.42654633]
[1762516915582,6.21197042,3266.2,3266.1,39.65654633]
[1762516915879,8.547057,3263.2,3262.4,3.691]
[1762516916077,0.405504,3264.8,3262.5,3.06507763]
[1762516916276,0.405504,3265.1,3262.7,3.06489497]
[1762516916500,0.405504,3265.1,3262.9,0.5089995]
[1762516916775,0.455504,3264.9,3262.9,0.5089995]
[1762516916981,0.405504,3264.2,3262.9,0.1841]
[1762516917141,1.4522618,3264.8,3262.9,0.1841]
[1762516917476,1.665216,3264.6,3262.9,0.1841]
[1762516917774,0.82269464,3264.6,3262.9,0.1841]
[1762516917973,0.405504,3264.7,3262.9,0.1841]
[1762516918276,0.405504,3264.5,3262.9,0.1841]
[1762516918450,0.405504,3264.5,3262.9,1.4141]
[1762516918782,1.665216,3264.4,3262.9,1.4141]
[1762516919192,0.405504,3264.4,3262.9,1.4141]
[1762516919708,1.665216,3264.4,3262.9,1.4141]
[1762516919851,0.405504,3264.3,3262.9,2.6441]
[1762516920188,0.41719064,3264.3,3263.0,0.26441]
[1762516920388,0.405504,3264.4,3263.0,0.26441]
[1762516920591,0.15422057,3264.7,3263.0,0.26441]
[1762516920592,0.405504,3264.6,3263.0,0.26441]
[1762516920889,1.721812,3265.0,3263.0,0.26441]
[1762516921090,1.259712,3265.2,3263.0,0.26441]
[1762516921091,0.62230649,3266.2,3263.5,3.0641948]
[1762516921255,0.62230649,3266.2,3263.0,0.26441]
[1762516921256,0.4621,3266.0,3263.6,0.30641948]
[1762516921456,1.721812,3266.0,3263.6,0.30641948]
[1762516921663,0.4621,3266.0,3263.6,0.30641948]
[1762516921866,0.405504,3265.8,3263.6,0.30641948]
[1762516922294,0.4621,3265.7,3263.1,3.637504]
[1762516922496,0.405504,3265.6,3263.6,1.23]
[1762516922657,0.405504,3265.5,3263.6,1.23]
[1762516922860,0.405504,3265.1,3263.6,1.23]
[1762516923055,0.405504,3264.8,3263.6,1.23]
[1762516923292,1.665216,3264.8,3263.6,1.23]
[1762516923495,0.405504,3265.1,3263.6,1.23]
[1762516923695,0.867604,3265.1,3263.6,1.23]
[1762516923872,0.867604,3265.1,3263.6,2.46]
[1762516923873,0.405504,3264.9,3263.6,2.46]
[1762516924070,0.82269464,3264.9,3263.7,0.246]
[1762516924271,1.259712,3265.1,3263.7,0.246]
[1762516924272,0.405504,3265.1,3263.7,0.246]
[1762516924805,0.41719064,3265.0,3263.7,0.246]
[1762516925402,0.41719064,3265.0,3263.7,1.476]
[1762516925577,0.405504,3265.1,3263.7,1.476]
[1762516925772,0.405504,3265.1,3263.8,0.3936]
[1762516925973,0.1923,3265.5,3263.8,0.3936]
[1762516926593,0.44378414,3265.4,3263.8,0.3936]
[1762516926925,0.405504,3265.3,3263.8,1.6236]
[1762516927083,1.665216,3265.3,3263.8,1.6236]
[1762516927285,1.665216,3265.3,3263.9,0.30996]
[1762516927531,0.405504,3265.4,3263.9,0.30996]
[1762516927678,0.867604,3265.4,3263.9,0.30996]
[1762516928233,0.405504,3265.2,3263.9,1.53996]
[1762516928386,1.665216,3265.2,3263.9,1.53996]
[1762516928589,1.665216,3264.8,3264.0,0.316356]
[1762516928797,1.665216,3264.6,3263.9,1.23]
[1762516928998,1.259712,3264.5,3263.9,1.23]
[1762516929202,2.127316,3264.6,3263.9,1.23]
[1762516929403,0.405504,3264.4,3263.9,2.46]
[1762516929726,0.405504,3264.2,3263.9,2.46]
[1762516930034,0.4621,3265.1,3263.9,2.952]
[1762516930212,0.405504,3265.0,3263.9,2.952]
[1762516930803,2.127316,3265.0,3263.9,4.182]
[1762516931013,0.405504,3264.8,3263.9,4.182]
[1762516931632,0.405504,3265.1,3263.9,4.182]
[1762516931926,0.405504,3265.1,3264.0,0.5412]
[1762516932087,1.665216,3265.1,3264.0,0.5412]
[1762516932289,3.46824987,3265.1,3264.0,0.5412]
[1762516932610,0.405504,3264.9,3264.0,0.5412]
[1762516932989,2.127316,3264.9,3264.0,0.5412]
[1762516933324,0.405504,3264.7,3263.9,4.92]
[1762516933616,0.405504,3264.7,3263.9,6.15]
[1762516933824,0.4621,3264.6,3263.9,6.15]
[1762516934352,1.721812,3264.6,3263.9,6.15]
[1762516934645,0.880004,3264.0,3263.9,6.15]
[1762516934844,0.880004,3264.0,3263.9,7.38]
[1762516935250,2.17715873,3264.0,3263.9,7.38]
[1762516935450,6.50059622,3264.0,3263.9,7.38]
[1762516936362,6.50059622,3264.0,3263.9,8.61]
[1762516936363,6.55059622,3264.0,3263.9,8.61]
[1762516936519,6.88735071,3264.0,3263.9,8.61]
[1762516936715,6.55059622,3264.0,3263.9,7.68034597]
[1762516937158,6.50920838,3264.0,3263.9,7.68034597]
[1762516937652,4.72903535,3263.9,3263.8,1.23]
[1762516937814,6.30192549,3263.9,3263.8,1.23]
[1762516938015,5.88523535,3263.9,3263.8,1.23]
[1762516938625,6.69055224,3263.9,3263.8,1.23]
[1762516938828,7.02730673,3263.9,3263.8,1.03837783]
[1762516939027,1.665216,3263.7,3263.6,2.46]
[1762516939231,2.139116,3263.7,3263.6,2.46]
[1762516939430,5.6913231,3263.7,3263.6,2.46]
[1762516940053,2.627316,3263.7,3263.6,2.46]
[1762516940349,3.04400614,3263.7,3263.6,3.69]
[1762516940852,1.665216,3263.7,3263.6,3.69]
[1762516941519,1.665216,3263.7,3263.6,4.92]
[1762516942458,5.6919231,3263.7,3263.6,4.92]
[1762516942754,6.10861324,3263.7,3263.6,4.92]
[1762516942923,3.43323289,3263.7,3263.6,6.15]
[1762516943121,6.10861324,3263.7,3263.6,6.15]
[1762516943363,2.08190614,3263.7,3263.6,6.15]
[1762516943556,1.665216,3263.7,3263.6,6.15]
[1762516943713,1.259712,3263.7,3263.6,6.15]
[1762516943918,1.259712,3263.7,3263.6,6.7651]
[1762516944119,0.4882,3264.5,3263.6,7.5449]
[1762516944120,0.92147072,3264.5,3263.6,7.5449]
[1762516944369,0.92147072,3264.5,3263.6,8.7749]
[1762516944522,0.4882,3264.8,3263.6,8.7749]
[1762516944714,1.747912,3264.8,3263.6,8.7749]
[1762516944915,1.747912,3264.8,3263.7,0.87759]
[1762516945122,1.259712,3264.6,3263.7,0.87759]
[1762516945428,0.4882,3264.7,3263.7,0.87759]
[1762516945624,0.4882,3264.7,3263.7,2.10759]
[1762516946025,0.405504,3264.6,3263.7,2.10759]
[1762516946324,0.405504,3264.4,3263.8,0.948759]
[1762516946526,0.405504,3264.6,3263.8,0.948759]
[1762516946967,0.405504,3264.6,3263.8,2.178759]
[1762516947126,0.1602412,3264.9,3263.8,2.568659]
[1762516947461,0.4882,3264.8,3263.8,2.178759]
[1762516947660,0.4882,3264.8,3263.9,0.3408759]
[1762516947859,1.259712,3264.7,3263.9,0.3408759]
[1762516948186,0.405504,3263.9,3263.8,1.23]
[1762516948330,2.280216,3263.9,3263.8,2.46]
[1762516948829,5.34403535,3263.9,3263.8,2.46]
[1762516949046,2.280216,3263.9,3263.8,2.46]
[1762516949645,2.72184275,3263.9,3263.8,2.46]
[1762516949880,3.23810614,3263.9,3263.8,3.69]
[1762516950545,3.13853289,3263.9,3263.8,3.69]
[1762516950944,3.13853289,3263.9,3263.8,4.55532037]
[1762516950945,0.82219414,3263.9,3263.8,4.55532037]
[1762516951170,0.405504,3264.5,3263.8,5.78532037]
[1762516951377,0.79413075,3264.5,3263.8,5.3107]
[1762516951556,1.665216,3264.5,3263.8,5.3107]
[1762516951772,1.665216,3264.3,3263.8,4.92]
[1762516952173,0.4882,3264.2,3263.8,4.92]
[1762516952372,0.405504,3264.3,3263.8,4.92]
[1762516952572,0.405504,3264.3,3263.8,6.15]
[1762516953089,0.4882,3264.2,3263.8,6.15]
[1762516953395,1.073504,3263.9,3263.8,6.15]
[1762516953887,1.46213075,3263.9,3263.8,7.38]
[1762516954064,2.36702089,3263.9,3263.8,7.38]
[1762516954261,5.43084024,3263.9,3263.8,7.38]
[1762516954460,6.69055224,3263.9,3263.8,7.38]
[1762516954863,3.23810614,3263.9,3263.8,7.38]
[1762516955105,1.665216,3263.9,3263.8,7.38]
[1762516955285,1.665216,3263.9,3263.8,8.61]
[1762516956649,2.08190614,3263.9,3263.8,9.84]
[1762516956850,1.665216,3263.9,3263.8,10.2307]
[1762516957057,0.1602412,3264.9,3263.8,12.4664]
[1762516957357,0.41669014,3264.8,3264.1,0.3907]
[1762516957577,1.67640214,3264.8,3264.1,0.3907]
[1762516957791,0.41669014,3264.8,3264.1,0.5207]
[1762516957992,0.405504,3264.7,3264.1,1.7507]
[1762516958294,0.1602412,3264.9,3264.1,1.92577]